Workbook

Sheet Familiebudget
B1: BUDGET FOR SMITH-FAMILIEN
B2: ÅR: | C2: 2013
B4: TILGÆNGELIGE KONTANTER | C4: JAN | D4: FEB | E4: MAR | F4: APR | G4: MAJ | H4: JUN | I4: JUL | J4: AUG | K4: SEP | L4: OKT | M4: NOV | N4: DEC | O4: I ALT FOR ÅR TIL DATO | P4: TENDENS
B5: Kontant hver måned | C5: =tblIndkomst[[#Totals],[JAN]]-tblUdgifter[[#Totals],[JAN]] -> kr. 1,220.00 | D5: =tblIndkomst[[#Totals],[FEB]]-tblUdgifter[[#Totals],[FEB]] -> kr. 1,587.00 | E5: =tblIndkomst[[#Totals],[MAR]]-tblUdgifter[[#Totals],[MAR]] -> kr. 1,174.00 | F5: =tblIndkomst[[#Totals],[APR]]-tblUdgifter[[#Totals],[APR]] -> kr. 1,445.00 | G5: =tblIndkomst[[#Totals],[MAJ]]-tblUdgifter[[#Totals],[MAJ]] -> kr. 1,391.00 | H5: =tblIndkomst[[#Totals],[JUN]]-tblUdgifter[[#Totals],[JUN]] -> kr. 1,434.00 | I5: =tblIndkomst[[#Totals],[JUL]]-tblUdgifter[[#Totals],[JUL]] -> kr. 1,085.00 | J5: =tblIndkomst[[#Totals],[AUG]]-tblUdgifter[[#Totals],[AUG]] -> kr. 1,181.00 | K5: =tblIndkomst[[#Totals],[SEP]]-tblUdgifter[[#Totals],[SEP]] -> kr. 1,445.00 | L5: =tblIndkomst[[#Totals],[OKT]]-tblUdgifter[[#Totals],[OKT]] -> kr. 1,466.00 | M5: =tblIndkomst[[#Totals],[NOV]]-tblUdgifter[[#Totals],[NOV]] -> kr. 0.00 | N5: =tblIndkomst[[#Totals],[DEC]]-tblUdgifter[[#Totals],[DEC]] -> kr. 0.00 | O5: =tblIndkomst[[#Totals],[I ALT FOR ÅR TIL DATO]]-tblUdgifter[[#Totals],[I ALT FOR ÅR TIL DATO]] -> kr. 13,428.00
B7: INDKOMSTTYPE | C7: JAN | D7: FEB | E7: MAR | F7: APR | G7: MAJ | H7: JUN | I7: JUL | J7: AUG | K7: SEP | L7: OKT | M7: NOV | N7: DEC | O7: I ALT FOR ÅR TIL DATO | P7: TENDENS
B8: Indkomst 1 | C8: kr. 4,000.00 | D8: kr. 4,410.00 | E8: kr. 4,019.00 | F8: kr. 4,263.00 | G8: kr. 4,123.00 | H8: kr. 4,308.00 | I8: kr. 4,162.00 | J8: kr. 4,165.00 | K8: kr. 4,248.00 | L8: kr. 4,324.00 | O8: =SUM(tblIndkomst[[#This Row],[JAN]:[DEC]]) -> kr. 42,022.00
B9: Indkomst 2 | C9: kr. 275.00 | D9: kr. 296.00 | E9: kr. 251.00 | F9: kr. 269.00 | G9: kr. 252.00 | H9: kr. 252.00 | I9: kr. 262.00 | J9: kr. 258.00 | K9: kr. 296.00 | L9: kr. 270.00 | O9: =SUM(tblIndkomst[[#This Row],[JAN]:[DEC]]) -> kr. 2,681.00
B10: Anden indkomst | C10: kr. 500.00 | D10: kr. 507.00 | E10: kr. 551.00 | F10: kr. 556.00 | G10: kr. 588.00 | H10: kr. 534.00 | I10: kr. 533.00 | J10: kr. 585.00 | K10: kr. 560.00 | L10: kr. 520.00 | O10: =SUM(tblIndkomst[[#This Row],[JAN]:[DEC]]) -> kr. 5,434.00
B11: SAMLET INDKOMST | C11: =SUBTOTAL(109,tblIndkomst[JAN]) -> kr. 4,775.00 | D11: =SUBTOTAL(109,tblIndkomst[FEB]) -> kr. 5,213.00 | E11: =SUBTOTAL(109,tblIndkomst[MAR]) -> kr. 4,821.00 | F11: =SUBTOTAL(109,tblIndkomst[APR]) -> kr. 5,088.00 | G11: =SUBTOTAL(109,tblIndkomst[MAJ]) -> kr. 4,963.00 | H11: =SUBTOTAL(109,tblIndkomst[JUN]) -> kr. 5,094.00 | I11: =SUBTOTAL(109,tblIndkomst[JUL]) -> kr. 4,957.00 | J11: =SUBTOTAL(109,tblIndkomst[AUG]) -> kr. 5,008.00 | K11: =SUBTOTAL(109,tblIndkomst[SEP]) -> kr. 5,104.00 | L11: =SUBTOTAL(109,tblIndkomst[OKT]) -> kr. 5,114.00 | M11: =SUBTOTAL(109,tblIndkomst[NOV]) -> kr. 0.00 | N11: =SUBTOTAL(109,tblIndkomst[DEC]) -> kr. 0.00 | O11: =SUBTOTAL(109,tblIndkomst[I ALT FOR ÅR TIL DATO]) -> kr. 50,137.00
B13: UDGIFTER | C13: JAN | D13: FEB | E13: MAR | F13: APR | G13: MAJ | H13: JUN | I13: JUL | J13: AUG | K13: SEP | L13: OKT | M13: NOV | N13: DEC | O13: I ALT FOR ÅR TIL DATO | P13: TENDENS
B14: Bolig | C14: kr. 1,500.00 | D14: kr. 1,500.00 | E14: kr. 1,500.00 | F14: kr. 1,500.00 | G14: kr. 1,500.00 | H14: kr. 1,500.00 | I14: kr. 1,500.00 | J14: kr. 1,500.00 | K14: kr. 1,500.00 | L14: kr. 1,500.00 | O14: =SUM(tblUdgifter[[#This Row],[JAN]:[DEC]]) -> kr. 15,000.00
B15: Dagligvarer | C15: kr. 250.00 | D15: kr. 331.00 | E15: kr. 299.00 | F15: kr. 333.00 | G15: kr. 324.00 | H15: kr. 313.00 | I15: kr. 338.00 | J15: kr. 225.00 | K15: kr. 258.00 | L15: kr. 322.00 | O15: =SUM(tblUdgifter[[#This Row],[JAN]:[DEC]]) -> kr. 2,993.00
B16: Afbetaling på bil | C16: kr. 345.00 | D16: kr. 345.00 | E16: kr. 345.00 | F16: kr. 345.00 | G16: kr. 345.00 | H16: kr. 345.00 | I16: kr. 345.00 | J16: kr. 345.00 | K16: kr. 345.00 | L16: kr. 345.00 | O16: =SUM(tblUdgifter[[#This Row],[JAN]:[DEC]]) -> kr. 3,450.00
B17: Forsikring | C17: kr. 120.00 | D17: kr. 120.00 | E17: kr. 120.00 | F17: kr. 120.00 | G17: kr. 120.00 | H17: kr. 120.00 | I17: kr. 120.00 | J17: kr. 120.00 | K17: kr. 120.00 | L17: kr. 120.00 | O17: =SUM(tblUdgifter[[#This Row],[JAN]:[DEC]]) -> kr. 1,200.00
B18: Telefon (privat) | C18: kr. 50.00 | D18: kr. 50.00 | E18: kr. 50.00 | F18: kr. 50.00 | G18: kr. 50.00 | H18: kr. 50.00 | I18: kr. 50.00 | J18: kr. 50.00 | K18: kr. 50.00 | L18: kr. 50.00 | O18: =SUM(tblUdgifter[[#This Row],[JAN]:[DEC]]) -> kr. 500.00
B19: Mobiltelefon | C19: kr. 72.00 | D19: kr. 70.00 | E19: kr. 80.00 | F19: kr. 70.00 | G19: kr. 75.00 | H19: kr. 80.00 | I19: kr. 90.00 | J19: kr. 73.00 | K19: kr. 75.00 | L19: kr. 70.00 | O19: =SUM(tblUdgifter[[#This Row],[JAN]:[DEC]]) -> kr. 755.00
B20: Kabel-tv | C20: kr. 60.00 | D20: kr. 63.00 | E20: kr. 65.00 | F20: kr. 60.00 | G20: kr. 65.00 | H20: kr. 60.00 | I20: kr. 63.00 | J20: kr. 60.00 | K20: kr. 63.00 | L20: kr. 60.00 | O20: =SUM(tblUdgifter[[#This Row],[JAN]:[DEC]]) -> kr. 619.00
B21: Internet | C21: kr. 45.00 | D21: kr. 45.00 | E21: kr. 45.00 | F21: kr. 45.00 | G21: kr. 45.00 | H21: kr. 45.00 | I21: kr. 45.00 | J21: kr. 45.00 | K21: kr. 45.00 | L21: kr. 45.00 | O21: =SUM(tblUdgifter[[#This Row],[JAN]:[DEC]]) -> kr. 450.00
B22: Elektricitet | C22: kr. 155.00 | D22: kr. 155.00 | E22: kr. 158.00 | F22: kr. 160.00 | G22: kr. 165.00 | H22: kr. 200.00 | I22: kr. 340.00 | J22: kr. 350.00 | K22: kr. 240.00 | L22: kr. 180.00 | O22: =SUM(tblUdgifter[[#This Row],[JAN]:[DEC]]) -> kr. 2,103.00
B23: Vand | C23: kr. 35.00 | D23: kr. 35.00 | E23: kr. 37.00 | F23: kr. 39.00 | G23: kr. 45.00 | H23: kr. 42.00 | I23: kr. 42.00 | J23: kr. 36.00 | K23: kr. 38.00 | L23: kr. 40.00 | O23: =SUM(tblUdgifter[[#This Row],[JAN]:[DEC]]) -> kr. 389.00
B24: Benzin | C24: kr. 50.00 | D24: kr. 45.00 | E24: kr. 40.00 | F24: kr. 40.00 | G24: kr. 42.00 | H24: kr. 50.00 | I24: kr. 55.00 | J24: kr. 40.00 | K24: kr. 43.00 | L24: kr. 30.00 | O24: =SUM(tblUdgifter[[#This Row],[JAN]:[DEC]]) -> kr. 435.00
B25: Underholdning | C25: kr. 123.00 | D25: kr. 92.00 | E25: kr. 58.00 | F25: kr. 131.00 | G25: kr. 46.00 | H25: kr. 105.00 | I25: kr. 84.00 | J25: kr. 108.00 | K25: kr. 132.00 | L25: kr. 136.00 | O25: =SUM(tblUdgifter[[#This Row],[JAN]:[DEC]]) -> kr. 1,015.00
B26: Undervisningsgebyr | C26: kr. 550.00 | D26: kr. 550.00 | E26: kr. 550.00 | F26: kr. 550.00 | G26: kr. 550.00 | H26: kr. 550.00 | I26: kr. 550.00 | J26: kr. 550.00 | K26: kr. 550.00 | L26: kr. 550.00 | O26: =SUM(tblUdgifter[[#This Row],[JAN]:[DEC]]) -> kr. 5,500.00
B27: Opsparing | C27: kr. 200.00 | D27: kr. 225.00 | E27: kr. 300.00 | F27: kr. 200.00 | G27: kr. 200.00 | H27: kr. 200.00 | I27: kr. 250.00 | J27: kr. 325.00 | K27: kr. 200.00 | L27: kr. 200.00 | O27: =SUM(tblUdgifter[[#This Row],[JAN]:[DEC]]) -> kr. 2,300.00
B28: UDGIFTER I ALT | C28: =SUBTOTAL(109,tblUdgifter[JAN]) -> kr. 3,555.00 | D28: =SUBTOTAL(109,tblUdgifter[FEB]) -> kr. 3,626.00 | E28: =SUBTOTAL(109,tblUdgifter[MAR]) -> kr. 3,647.00 | F28: =SUBTOTAL(109,tblUdgifter[APR]) -> kr. 3,643.00 | G28: =SUBTOTAL(109,tblUdgifter[MAJ]) -> kr. 3,572.00 | H28: =SUBTOTAL(109,tblUdgifter[JUN]) -> kr. 3,660.00 | I28: =SUBTOTAL(109,tblUdgifter[JUL]) -> kr. 3,872.00 | J28: =SUBTOTAL(109,tblUdgifter[AUG]) -> kr. 3,827.00 | K28: =SUBTOTAL(109,tblUdgifter[SEP]) -> kr. 3,659.00 | L28: =SUBTOTAL(109,tblUdgifter[OKT]) -> kr. 3,648.00 | M28: =SUBTOTAL(109,tblUdgifter[NOV]) -> kr. 0.00 | N28: =SUBTOTAL(109,tblUdgifter[DEC]) -> kr. 0.00 | O28: =SUBTOTAL(109,tblUdgifter[I ALT FOR ÅR TIL DATO]) -> kr. 36,709.00
